Cogmind - Beta 15 *** ADVENTURER MODE // 2025.06.11 @ 21:33:02 Player: User15V Result: Destroyed by G-34 Mercenary with Small Laser Performance ------------- Evolutions (1) 500 Regions Visited (2) 400 Robots Destroyed (9) 45 Value Destroyed (92) 92 Prototype IDs (2) 40 Alien Tech Used (0) 0 Bonus (771) 771 TOTAL SCORE: 1848 Bonus ------- Gauntlet 771 Cogmind --------- Core Integrity 0/400 Matter 254/300 Energy 92/100 System Corruption 0% Temperature Cool (6) Movement Core (200) Ox3 Location -9/Materials Parts ------- > --- POWER (1) -------- (None) > --- PROPULSION (3) --- (None) > --- UTILITY (3) ------ Medium Storage Unit > --- WEAPON (2) ------- (None) > --- INVENTORY (10) --- Light Ion Engine Small Storage Unit Improved Terrain Scan Processor Light Armor Plating Assault Rifle Grenade Launcher Peak State ------------ > --- POWER ------------ Ion Engine > --- PROPULSION ------- Wheel Compact Wheel Compact Wheel > --- UTILITY ---------- Medium Storage Unit Light Armor Plating > --- WEAPON ----------- Assault Rifle Light Assault Rifle > --- INVENTORY -------- Light Ion Engine Hover Unit Hover Unit Small Storage Unit Improved Terrain Scan Processor Light Armor Plating Light Assault Rifle Grenade Launcher [Rating: 9] Favorites ----------- Power Ion Engine Engine Ion Engine Propulsion Compact Wheel Wheel Compact Wheel Hover Unit Hover Unit Flight Unit Flight Unit Utility Medium Storage Unit Storage Medium Storage Unit Protection Light Armor Plating Weapon Light Assault Rifle Ballistic Gun Light Assault Rifle Build | -11 -10 -9 ------- Run | Yrd Mat Mat Slots Evolved 2 | . . 2 Power . | . . . Propulsion 1 | . . 1 Utility 1 | . . 1 Weapon . | . . . Parts Attached 14 | 6 1 7 Power 1 | 1 . . Engine 1 | 1 . . Core . | . . . Reactor . | . . . Propulsion 7 | 2 . 5 Treads . | . . . Leg . | . . . Wheel 3 | 2 . 1 Hover 2 | . . 2 Flight 2 | . . 2 Utility 3 | 1 1 1 Device . | . . . Storage 2 | 1 1 . Processor . | . . . Hackware . | . . . Protection 1 | . . 1 Artifact . | . . . Weapon 3 | 2 . 1 Energy Gun . | . . . Energy Cannon . | . . . Ballistic Gun 3 | 2 . 1 Ballistic Cannon . | . . . Launcher . | . . . Special Weapon . | . . . Impact Weapon . | . . . Slashing Weapon . | . . . Piercing Weapon . | . . . Special Melee Weapon . | . . . Unidentified Prototypes . | . . . Parts Lost 8 | . . 8 Power 1 | . . 1 Propulsion 5 | . . 5 Utility . | . . . Weapon 2 | . . 2 Highest Loss Streak 7 | . . 7 To Critical Strikes . | . . . Average Backups 6 | 1 4 8 Power . | . 1 1 Propulsion 2 | . 3 2 Utility 1 | . . 2 Weapon 1 | . . 2 Tool/Special . | . . . Unused Backups 6 | . . 6 Power 1 | . . 1 Propulsion 2 | . . 2 Utility 2 | . . 2 Weapon 1 | . . 1 Tool/Special . | . . . Average Slot Usage (%) 75 | . 85 69 Engine 10 | . 14 9 Wheel 23 | . 28 20 Hover 2 | . . 4 Storage 12 | . 14 11 Protection 3 | . . 6 Ballistic Gun 21 | . 28 17 Peak Build Rating 9 | 6 6 9 Average Rating 6 | 4 6 7 On Entrance 4 | . 6 6 Naked Turns . | . . . Heaviest Build 21 | 13 18 21 Greatest Support 42 | 32 32 42 Greatest Overweight (x) 3 | . . 3 Average Overweight (x) . | . . . Largest Inventory Capacity 10 | 8 10 10 Average Capacity 9 | 6 8 10 Most Carried 10 | 3 9 10 Average Carried 6 | 1 4 8 Final Capacity 10 | 8 10 10 Final Carried 9 | 3 9 6 Class Distribution -------------------- 100% | Mutant Dominant Class ---------------- Mutant | -10/Materials Mutant | -9/Materials Resources | -11 -10 -9 ----------- Run | Yrd Mat Mat Matter Collected 352 | 252 70 30 Remotely . | . . . Salvage Created 222 | . 159 63 Parts 16 | . 9 7 Haulers Intercepted . | . . . Recyclers Shooed . | . . . Parts Field Recycled . | . . . Retrieved Matter . | . . . Parts Self-Destructed . | . . . Prevented . | . . . Kills | -11 -10 -9 ------- Run | Yrd Mat Mat Combat Hostiles Destroyed 7 | . 3 4 Guns 7 | . 3 4 Classes Destroyed 3 | . 3 . Recycler 1 | . 1 . Watcher 1 | . 1 . Swarmer 7 | . 3 4 Best Kill Streak 5 | . 5 4 Combat Bots Only 4 | . 3 4 Max Kills in Single Turn 1 | . 1 1 Gunslinging . | . . . Exploded . | . . . Melee . | . . . Uniques/NPCs Destroyed . | . . . Combat | -11 -10 -9 -------- Run | Yrd Mat Mat Hostile Shots Fired 156 | . 18 138 Missed 32 | . 4 28 Hits 124 | . 14 110 Projectile 124 | . 14 110 Critical Strikes 1 | . . 1 Damage Taken 975 | . 115 860 Core 430 | . 25 405 Absorbed by Shields . | . . . Ignored by Resistances 308 | . 36 272 Core Remaining (%) 95 | 100 90 . Volleys Fired 33 | . 13 20 Largest 2 | . 2 2 Hottest 40 | . 40 40 Shots Fired 50 | . 26 24 Gun 50 | . 26 24 Cannon . | . . . Launcher . | . . . Special . | . . . Kinetic 50 | . 26 24 Thermal . | . . . Explosive . | . . . Electromagnetic . | . . . Robot Hit Streak 16 | . 12 16 Robot Miss Streak 4 | . 4 1 Penetration Max . | . . . Secondary Targets 1 | . 1 . Max Gunslinging Chain 1 | . 1 . Shots Hit Robots 37 | . 17 20 Core Hits 16 | . 8 8 Critical Kills 1 | . 1 . Critical Parts Destroyed . | . . . Critical Strikes 1 | . 1 . Destroy 1 | . 1 . Melee Attacks . | . . . Impact . | . . . Slashing . | . . . Piercing . | . . . Sneak Attacks . | . . . Combat Hostiles . | . . . Follow-up Attacks . | . . . Damage Inflicted 342 | . 191 151 Guns 342 | . 191 151 Cannons . | . . . Explosions . | . . . Melee . | . . . Ramming . | . . . Kinetic 342 | . 191 151 Thermal . | . . . Explosive . | . . . Electromagnetic . | . . . Impact . | . . . Slashing . | . . . Piercing . | . . . Highest Corruption . | . . . Average Corruption . | . . . Corruption Purged . | . . . Corruption Blocked . | . . . Overload Shots . | . . . Overflow Damage . | . . . Projectiles . | . . . Explosions . | . . . Melee . | . . . Knockbacks . | . . . Impact . | . . . Kinetic . | . . . Secondary . | . . . Self-Inflicted Damage . | . . . Shots . | . . . Rammed . | . . . Targets Rammed . | . . . Kicked . | . . . Crushed . | . . . Highest Temperature 3 | . . 3 Average Temperature 2 | . . 2 Received Heat Transfer 399 | . . 399 Siege Activations . | . . . Martial Activations . | . . . Shielding Activations . | . . . Robots Disrupted . | . . . Combat Hostiles . | . . . Robots Corrupted . | . . . Combat Hostiles . | . . . Parts Fried . | . . . Impact Corruptions . | . . . Robots Melted . | . . . Combat Hostiles . | . . . Parts Melted . | . . . Heat Transferred . | . . . Parts Sabotaged . | . . . Parts Stolen . | . . . Parts Stripped . | . . . Power Chain Reactions . | . . . Alert | -11 -10 -9 ------- Run | Yrd Mat Mat Maximum Alert Level . | . . . Low Security (%) 100 | 100 100 100 Level 1 . | . . . Level 2 . | . . . Level 3 . | . . . Level 4 . | . . . Level 5 . | . . . High Security . | . . . Max Security . | . . . Peak Influence 70 | . 67 70 Initial 15 | . . 15 Average 17 | . 26 15 Influence Increases 208 | . 89 119 Destroy 0b10 Robot/C 140 | . 60 80 Destroy 0b10 Robot/NC 10 | . 10 . Destroy Leader 22 | . 12 10 Successful Hack 21 | . 7 14 Lose Combat Pursuer 15 | . . 15 Influence Decreases 208 | . 47 161 Entered New Map 27 | . . 27 Time Decay 116 | . 47 69 Lost Part 65 | . . 65 Squads Dispatched 2 | . . 2 Investigation 1 | . . 1 Extermination . | . . . Reinforcement 1 | . . 1 Assault . | . . . Garrison . | . . . Intercept . | . . . Searches Triggered . | . . . Construction Impeded . | . . . Haulers Reinforced . | . . . Active Scanning Responses . | . . . Cargo Convoy Interrupts . | . . . Stealth | -11 -10 -9 --------- Run | Yrd Mat Mat Distress Signals 3 | . 1 2 Communications Jammed . | . . . Distress Signals . | . . . Times Spotted 25 | . 5 20 Peak Tracking Total 11 | . 5 11 Tactical Retreats 1 | . . 1 Traps | -11 -10 -9 ------- Run | Yrd Mat Mat Traps Triggered 2 | . 1 1 Indirectly . | . . . Trap Hack Attempts . | . . . Triggered . | . . . Disarmed . | . . . Reprogrammed . | . . . Reused . | . . . Traps Extracted . | . . . Installed . | . . . Triggered . | . . . Machines | -11 -10 -9 ---------- Run | Yrd Mat Mat Machines Disabled . | . . . Max in Single Turn . | . . . Machines Repaired . | . . . Machines Dismantled . | . . . Machines Sabotaged . | . . . Overloaded Fab Kills . | . . . Hacking | -11 -10 -9 --------- Run | Yrd Mat Mat Machines Accessed 5 | . 1 4 Terminals 5 | . 1 4 Fabricators . | . . . Repair Stations . | . . . Recycling Units . | . . . Scanalyzers . | . . . Garrison Access . | . . . Total Hacks 19 | . 1 18 Successful 7 | . 1 6 Failed 12 | . . 12 Catastrophic 2 | . . 2 Database Lockouts . | . . . Manual 15 | . . 15 Terminals 19 | . 1 18 Fabricators . | . . . Repair Stations . | . . . Recycling Units . | . . . Scanalyzers . | . . . Garrison Access . | . . . Terminal Hacks 4 | . 1 3 Prototype ID Bank 1 | . . 1 Level Access Points 2 | . 1 1 Emergency Access Points 1 | . . 1 Fabricator Hacks . | . . . Repair Station Hacks . | . . . Recycling Unit Hacks . | . . . Scanalyzer . | . . . Garrison Access Hacks . | . . . Unauthorized Hacks 3 | . . 3 Terminals 3 | . . 3 Botnet 3 | . . 3 Fabricators . | . . . Repair Stations . | . . . Recycling Units . | . . . Scanalyzers . | . . . Garrison Access . | . . . Data Cores Recovered . | . . . Used . | . . . Hacking Detections 3 | . . 3 Full Trace Events 3 | . . 3 Feedback Events . | . . . Feedback Blocked . | . . . Robot Schematics Acquired . | . . . Robots Built . | . . . Authchips . | . . . Time . | . . . Total Robot Build Rating . | . . . Part Schematics Acquired . | . . . Parts Built . | . . . Authchips . | . . . Time . | . . . Total Part Build Rating . | . . . Parts Repaired . | . . . Time . | . . . Parts Recycled . | . . . Recycled Matter . | . . . Retrieved Matter . | . . . Retrieved Components . | . . . Parts Scanalyzed . | . . . Part Schematics Acquired . | . . . Parts Damaged . | . . . Bothacking | -11 -10 -9 ------------ Run | Yrd Mat Mat Used RIF Installer . | . . . Robots Hacked . | . . . Non-combat . | . . . Combat . | . . . Robot Hacks Applied . | . . . Relay Couplers Released . | . . . Fabnet Peak Effective % . | . . . Robots Rewired . | . . . Allies Hacked . | . . . Hacks Repelled . | . . . Allies | -11 -10 -9 -------- Run | Yrd Mat Mat Total Allies . | . . . Largest Group . | . . . Highest-Rated Group . | . . . Highest-Rated Ally . | . . . Total Orders . | . . . Ally Attacks . | . . . Total Damage . | . . . Kills . | . . . Allies Corrupted . | . . . Allies Melted . | . . . Intel | -11 -10 -9 ------- Run | Yrd Mat Mat Active Infowar (turns) . | . . . Robot Analysis Total . | . . . Derelict Logs Recovered . | . . . Drone Launches . | . . . Drone Recoveries . | . . . Exploration | -11 -10 -9 ------------- Run | Yrd Mat Mat Turns Passed 503 | 59 169 275 Spaces Moved 377 | 48 126 203 Core 17 | 7 . 10 Treads . | . . . Legs . | . . . Wheels 323 | 41 126 156 Hover 35 | . . 35 Flight 2 | . . 2 Fastest Speed 50 | 50 100 61 Average Speed 102 | 92 100 105 Slowest Speed 200 | 100 100 200 Overloaded Moves . | . . . Propulsion Burnouts . | . . . Robots Hopped . | . . . Potential Cave-ins . | . . . Cave-ins Triggered . | . . . Exploration Rate (%) 21 | 3 35 27 Regions Visited 2 Branch Regions . Pre-discovered Areas . | . . . Known Exits Taken 1 | . 1 . Unknown Exits Taken 1 | 1 . . Scrap Searched . | . . . Spaces Dug . | . . . Terrain Destroyed . | . . . Melee . | . . . Projectile . | . . . AOE . | . . . Terrain Rammed . | . . . Walls Destroyed . | . . . Machines Disabled . | . . . Actions | -11 -10 -9 --------- Run | Yrd Mat Mat Total 454 | 62 145 247 Wait 3 | . . 3 Move 375 | 47 125 203 Hop . | . . . Pick Up 22 | 9 6 7 Fast Attach . | . . . Attach 15 | 6 . 9 Detach 1 | . . 1 Swap 1 | . 1 . Drop 4 | . . 4 Fire 33 | . 13 20 Melee . | . . . Ram . | . . . Kick . | . . . Crush . | . . . Escape Stasis . | . . . Rewire . | . . . Trap . | . . . Miscellaneous . | . . . Route ------- -11/Scrapyard -10/Materials -9/Materials (discovered 1 exit: *Mat) History --------- Turn | Location | Event 35 | -11/Scrapyard | Discovered new exit (range 16) 60 | -11/Scrapyard | Entered Materials 82 | -10/Materials | Identified exit to Materials 106 | -10/Materials | Discovered new exit (range 8) 187 | -10/Materials | Discovered new exit (range 16) 229 | -10/Materials | Entered another Materials area 229 | -9/Materials | Evolved 2 slots: Propulsion x1, Utility x1 307 | -9/Materials | Build established: Mutant 344 | -9/Materials | Discovered new exit (range 12) 370 | -9/Materials | Identified exit to Materials 491 | -9/Materials | Core integrity fell below 50% 501 | -9/Materials | Core integrity fell below 20% 504 | -9/Materials | Destroyed by G-34 Mercenary with Small Laser Last Messages --------------- Map updated. 00452_ ALERT: Suspicious activity at Terminal M012. Dispatching Investigation squad. 00457_ Ion Engine destroyed. 00467_ O-16 Technician: "IFF HANDSHAKE FAILED. SECURING TERMINAL." 00470_ Hover Unit destroyed. 00474_ Com. Wheel destroyed. 00476_ ALERT: Hostiles spotted, dispatching reinforcements to Terminal M002. 00476_ Lgt. Assault Rifle destroyed. 00476_ K-01 Serf destroyed. 00480_ Hover Unit destroyed. 00488_ Lgt. Assault Rifle destroyed. 00489_ M-13 Machinist repairs O-16 Technician. 00490_ M-13 Machinist destroyed. 00494_ K-01 Serf collects debris. 00498_ Flight Unit destroyed. 00498_ Dropped Flight Unit. 00498_ K-01 Serf collects debris. Map ----- +----------------------------------------------------+ | ????????????????????????????????????????? | | ????????????????????????????????????????? | | ????????????????????????????????????????? | | ????????????????????????????????????????? | | ????????????????????????????????????????? | | ????????????????????????????????????????? | | ????????????????????????????????????????? | | ????????????????????????????????????????? | | ????????????????????????????????????????? | | ????????????????????????????????????????? | | ??????????????? ????????????????? | | ??????????????? #???????????????? | | ? ???????????? %! #???????????????? | | ? ????????????# !! #???????????????? | | ? ????????????# ! #???????????????? | | ? ????????????# #???????????????? | | ? ????????????# #??""???????????? | | # #???????????# #?""????????????? | | # #???????????#u # ?????????????? | | # #???????????# ]!! # ??????????????? | | # #???????????# ]!! +???????????????? | | # #???????????# ]! #???????????????? | | #???????????# Y#???????????????? | | ############# ############????? | | b k g g #????? | | = gs! = @ < #????? | | % og%= g g #????? | | ###############+#### ####+######????? | | ##??????????? !?# #??????????????? | | #????????? # #??????????????? | | #??????? # #??????????????? | | T #?????# """"" # #??????????????? | | #?????# """"""""" # #??????????????? | | #?????# """ """ # #??????????????? | | ####?????? # #??????????????? | | ??????????????######## #??????????????? | | ?????????????????????# #??????????????? | | ?????????????????????# #??????????????? | | ?????????????????????# #??????????????? | | ?????????????????????# #??????????????? | | ?????????????????????? ???????????????? | | ????????????????????????????????????????? | | ????????????????????????????????????????? | | ????????????????????????????????????????? | | ????????????????????????????????????????? | | ????????????????????????????????????????? | | ????????????????????????????????????????? | | ????????????????????????????????????????? | | ????????????????????????????????????????? | | ????????????????????????????????????????? | +----------------------------------------------------+ Best States ------------- Heat Dissipation 28 Energy Generation 10 Energy Capacity 250 Matter Stores 300 Matter Capacity 300 Sight Range 16 Terrain Scan Density 10 Armor Coverage 150 Resistance: KI 20 Resistance: TH 20 Resistance: EX 20 Resistance: EM 20 Resistance: I 20 Resistance: S 20 Resistance: P 20 Evasion (%) 45 Offensive Hacking 10 Item Schematics ----------------- None Robot Schematics ------------------ None Fabricated ------------ Nothing Repaired ---------- Nothing Alien Tech Used ----------------- None Achievements -------------- None Challenges ------------ Gauntlet Game ------ Seed MyomerAdvancedScreen Manual? 0 Play Time 00:08:33 Cumulative 499.8 hours Start 2025.06.11 @ 21:26:30 End 2025.06.11 @ 21:33:02 Sessions 1 Manual Loads 0 Difficulty Adventurer Special Mode None Game No. 215 Rogue 104 Adventurer 111 Explorer 0 Win Type - Total 34 Types 19/5/0/5/1/1/0/0/1/2 Lore% 85 Gallery% 90 Achievement% 90 Wizard Run 0 Options --------- Layout 2 ASCII 0 Keyboard 0 Movement Mouse Keybinds 0 Fullscreen 2 Font 24/Smallcaps Map View 50x44 Zoom Use 0% Tactical HUD 1 Map Filters NONE Filters NONE Steam 1 RUN: ea717464-2d1b-4b6c-82ea-117518f46742